[Event "IV Pullman Rapid 2022"]
[Site "Riga, Latvia"]
[Date "2022.02.19"]
[Round "7.2"]
[White "Mustaps, Matiss"]
[Black "Gudovskis, Konstantins"]
[Result "1-0"]
[TimeControl "600+5"]
[WhiteTitle "FM"]
[WhiteElo "2393"]
[BlackElo "1984"]

1. e4 {[%clk 00:10:08]} {[%emt 00:00:02]} Nc6 {[%clk 00:10:08]} {[%emt
00:00:03]} 2. Nc3 {[%clk 00:09:33]} {[%emt 00:00:40]} Nf6 {[%clk 00:10:06]}
{[%emt 00:00:07]} 3. Nf3 {[%clk 00:09:32]} {[%emt 00:00:06]} d5 {[%clk
00:10:04]} {[%emt 00:00:06]} 4. exd5 {[%clk 00:09:35]} {[%emt 00:00:03]} Nxd5
{[%clk 00:10:08]} {[%emt 00:00:01]} 5. Bb5 {[%clk 00:09:34]} {[%emt 00:00:06]}
Bg4 {[%clk 00:09:26]} {[%emt 00:00:47]} 6. h3 {[%clk 00:09:37]} {[%emt
00:00:03]} Bxf3 {[%clk 00:09:28]} {[%emt 00:00:02]} 7. Qxf3 {[%clk 00:09:19]}
{[%emt 00:00:23]} e6 {[%clk 00:09:31]} {[%emt 00:00:02]} 8. O-O {[%clk
00:09:09]} {[%emt 00:00:15]} Be7 {[%clk 00:09:20]} {[%emt 00:00:15]} 9. b3
{[%clk 00:07:22]} {[%emt 00:01:53]} O-O {[%clk 00:09:04]} {[%emt 00:00:21]} 10.
Bxc6 {[%clk 00:06:38]} {[%emt 00:00:49]} bxc6 {[%clk 00:09:07]} {[%emt
00:00:02]} 11. Bb2 {[%clk 00:06:35]} {[%emt 00:00:09]} Bf6 {[%clk 00:07:28]}
{[%emt 00:01:44]} 12. Rad1 {[%clk 00:06:38]} {[%emt 00:00:02]} Nb4 {[%clk
00:06:07]} {[%emt 00:01:26]} 13. Ba3 {[%clk 00:06:28]} {[%emt 00:00:16]} c5
{[%clk 00:05:14]} {[%emt 00:00:58]} 14. d4 {[%clk 00:04:53]} {[%emt 00:01:39]}
Qe7 {[%clk 00:03:28]} {[%emt 00:01:51]} 15. Ne4 {[%clk 00:04:20]} {[%emt
00:00:39]} Rfd8 {[%clk 00:01:47]} {[%emt 00:01:46]} 16. c3 {[%clk 00:03:55]}
{[%emt 00:00:30]} Na6 {[%clk 00:01:20]} {[%emt 00:00:33]} 17. Qe2 {[%clk
00:03:54]} {[%emt 00:00:06]} Nb8 {[%clk 00:01:14]} {[%emt 00:00:11]} 18. Bxc5
{[%clk 00:03:58]} Qe8 {[%clk 00:01:03]} {[%emt 00:00:16]} 19. Nxf6+ {[%clk
00:03:47]} {[%emt 00:00:16]} gxf6 {[%clk 00:01:06]} {[%emt 00:00:02]} 20. Qg4+
{[%clk 00:03:52]} Kh8 {[%clk 00:01:09]} {[%emt 00:00:02]} 21. Qf3 {[%clk
00:03:56]} Nd7 {[%clk 00:01:12]} {[%emt 00:00:02]} 22. Ba3 {[%clk 00:03:54]}
{[%emt 00:00:07]} Qg8 {[%clk 00:01:12]} {[%emt 00:00:04]} 23. Be7 {[%clk
00:03:53]} {[%emt 00:00:06]} Qg6 {[%clk 00:01:04]} {[%emt 00:00:12]} 24. Bxd8
{[%clk 00:03:56]} {[%emt 00:00:02]} Rxd8 {[%clk 00:01:08]} {[%emt 00:00:01]} 25.
Qg3 {[%clk 00:03:59]} {[%emt 00:00:02]} Qf5 {[%clk 00:01:08]} {[%emt 00:00:05]}
26. Qxc7 {[%clk 00:03:54]} {[%emt 00:00:11]} Rg8 {[%clk 00:01:11]} {[%emt
00:00:03]} 27. Kh1 {[%clk 00:03:21]} {[%emt 00:00:37]} Nf8 {[%clk 00:00:53]}
{[%emt 00:00:24]} 28. Qb7 {[%clk 00:03:16]} {[%emt 00:00:10]} Ng6 {[%clk
00:00:52]} {[%emt 00:00:06]} 29. Qf3 {[%clk 00:03:18]} {[%emt 00:00:03]} Qg5
{[%clk 00:00:55]} {[%emt 00:00:02]} 30. g3 {[%clk 00:03:18]} {[%emt 00:00:05]}
h5 {[%clk 00:00:44]} {[%emt 00:00:16]} 31. Qe3 {[%clk 00:03:16]} {[%emt
00:00:07]} 1-0

[Event "IV Pullman Rapid 2022"]
[Site "Riga, Latvia"]
[Date "2022.02.19"]
[Round "7.3"]
[White "Savicevs, Arsenijs"]
[Black "Golubovskis, Maksims"]
[Result "0-1"]
[TimeControl "600+5"]
[BlackTitle "FM"]
[WhiteElo "1955"]
[BlackElo "2185"]

1. Nf3 {[%clk 00:10:07]} {[%emt 00:00:02]} Nf6 {[%clk 00:10:09]} {[%emt
00:00:01]} 2. c4 {[%clk 00:10:08]} {[%emt 00:00:04]} c5 {[%clk 00:10:13]}
{[%emt 00:00:01]} 3. d4 {[%clk 00:10:11]} {[%emt 00:00:02]} cxd4 {[%clk
00:10:17]} {[%emt 00:00:02]} 4. Nxd4 {[%clk 00:10:14]} {[%emt 00:00:02]} e6
{[%clk 00:10:19]} {[%emt 00:00:03]} 5. Nc3 {[%clk 00:10:15]} {[%emt 00:00:03]}
Bb4 {[%clk 00:10:23]} {[%emt 00:00:02]} 6. g3 {[%clk 00:10:12]} {[%emt
00:00:08]} Nc6 {[%clk 00:10:27]} {[%emt 00:00:02]} 7. Bg2 {[%clk 00:10:10]}
{[%emt 00:00:06]} d5 {[%clk 00:09:42]} {[%emt 00:00:50]} 8. O-O {[%clk
00:10:04]} {[%emt 00:00:11]} O-O {[%clk 00:08:22]} {[%emt 00:01:25]} 9. cxd5
{[%clk 00:09:49]} {[%emt 00:00:19]} Bxc3 {[%clk 00:08:13]} {[%emt 00:00:15]} 10.
dxc6 {[%clk 00:09:32]} {[%emt 00:00:22]} Bxd4 {[%clk 00:08:07]} {[%emt
00:00:11]} 11. cxb7 {[%clk 00:09:31]} {[%emt 00:00:06]} Bxb7 {[%clk 00:07:50]}
{[%emt 00:00:22]} 12. Bxb7 {[%clk 00:09:32]} {[%emt 00:00:04]} Bxf2+ {[%clk
00:07:26]} {[%emt 00:00:29]} 13. Kg2 {[%clk 00:09:14]} {[%emt 00:00:23]} Rb8
{[%clk 00:06:58]} {[%emt 00:00:33]} 14. Bf3 {[%clk 00:08:25]} {[%emt 00:00:52]}
Bd4 {[%clk 00:06:54]} {[%emt 00:00:10]} 15. Rb1 {[%clk 00:07:49]} {[%emt
00:00:41]} Qb6 {[%clk 00:06:32]} {[%emt 00:00:28]} 16. Bg5 {[%clk 00:06:20]}
{[%emt 00:01:34]} Rfd8 {[%clk 00:05:16]} {[%emt 00:01:20]} 17. Bxf6 {[%clk
00:06:21]} {[%emt 00:00:04]} Bxf6 {[%clk 00:05:20]} {[%emt 00:00:02]} 18. Qc2
{[%clk 00:05:16]} {[%emt 00:01:09]} Bxb2 {[%clk 00:05:08]} {[%emt 00:00:16]} 19.
Rfd1 {[%clk 00:05:06]} {[%emt 00:00:15]} Rxd1 {[%clk 00:04:51]} {[%emt
00:00:22]} 20. Qxd1 {[%clk 00:04:40]} {[%emt 00:00:32]} Qc7 {[%clk 00:04:45]}
{[%emt 00:00:12]} 21. Qa4 {[%clk 00:03:51]} {[%emt 00:00:53]} g6 {[%clk
00:02:40]} {[%emt 00:02:10]} 22. Qf4 {[%clk 00:02:18]} {[%emt 00:01:37]} Be5
{[%clk 00:02:18]} {[%emt 00:00:27]} 23. Rxb8+ {[%clk 00:02:22]} {[%emt
00:00:02]} Qxb8 {[%clk 00:02:22]} 24. Qc4 {[%clk 00:02:15]} {[%emt 00:00:11]}
Kg7 {[%emt 00:00:09]} 25. a4 {[%clk 00:02:16]} {[%emt 00:00:03]} Qb6 {[%clk
00:01:44]} {[%emt 00:00:41]} 26. Qb5 {[%clk 00:02:12]} {[%emt 00:00:09]} Qe3
{[%clk 00:01:44]} {[%emt 00:00:05]} 27. Qd3 {[%clk 00:02:16]} {[%emt 00:00:02]}
Qc1 {[%clk 00:01:29]} {[%emt 00:00:18]} 28. Qe4 {[%clk 00:01:52]} {[%emt
00:00:31]} Qc5 {[%clk 00:01:29]} {[%emt 00:00:05]} 29. Qc6 {[%clk 00:01:51]}
{[%emt 00:00:06]} Qb4 {[%clk 00:01:16]} {[%emt 00:00:18]} 30. Qb5 {[%clk
00:01:52]} {[%emt 00:00:04]} Qd4 {[%clk 00:01:18]} {[%emt 00:00:03]} 31. Qd3
{[%clk 00:01:52]} {[%emt 00:00:04]} Qb2 {[%clk 00:01:12]} {[%emt 00:00:10]} 32.
Qb5 {[%clk 00:01:52]} {[%emt 00:00:07]} Qa1 {[%clk 00:01:11]} {[%emt 00:00:06]}
33. Be4 {[%clk 00:01:15]} {[%emt 00:00:41]} Bd4 {[%clk 00:01:06]} {[%emt
00:00:10]} 34. Qb3 {[%clk 00:00:10]} {[%emt 00:01:11]} Qg1+ {[%clk 00:00:59]}
{[%emt 00:00:11]} 35. Kh3 {[%clk 00:00:11]} {[%emt 00:00:04]} Qf1+ {[%clk
00:00:55]} {[%emt 00:00:08]} 36. Bg2 {[%clk 00:00:15]} {[%emt 00:00:02]} Qxe2
{[%clk 00:00:52]} {[%emt 00:00:08]} 37. Bf3 {[%clk 00:00:15]} {[%emt 00:00:05]}
Qf1+ {[%clk 00:00:53]} {[%emt 00:00:03]} 38. Bg2 {[%clk 00:00:19]} {[%emt
00:00:02]} Qf5+ {[%clk 00:00:52]} {[%emt 00:00:06]} 39. g4 {[%clk 00:00:23]}
{[%emt 00:00:01]} Qf4 {[%clk 00:00:50]} {[%emt 00:00:05]} 40. Qf3 {[%clk
00:00:27]} {[%emt 00:00:03]} Qh6+ {[%clk 00:00:52]} {[%emt 00:00:03]} 41. Kg3
{[%clk 00:00:28]} {[%emt 00:00:04]} Be5+ {[%clk 00:00:56]} 42. Kf2 {[%clk
00:00:32]} Qxh2 {[%clk 00:00:56]} {[%emt 00:00:06]} 43. a5 {[%clk 00:00:30]}
{[%emt 00:00:08]} Bd4+ {[%clk 00:00:47]} {[%emt 00:00:13]} 44. Ke2 {[%clk
00:00:30]} {[%emt 00:00:05]} Qe5+ {[%clk 00:00:50]} {[%emt 00:00:02]} 45. Qe4
{[%clk 00:00:30]} {[%emt 00:00:06]} Qxe4+ {[%clk 00:00:41]} {[%emt 00:00:14]}
46. Bxe4 {[%clk 00:00:33]} {[%emt 00:00:02]} f5 {[%clk 00:00:44]} {[%emt
00:00:02]} 47. gxf5 {[%clk 00:00:31]} {[%emt 00:00:07]} exf5 {[%clk 00:00:30]}
{[%emt 00:00:19]} 48. Bd3 {[%clk 00:00:32]} {[%emt 00:00:05]} Bc3 {[%clk
00:00:33]} {[%emt 00:00:02]} 49. a6 {[%clk 00:00:34]} {[%emt 00:00:02]} Kf6
{[%clk 00:00:36]} {[%emt 00:00:01]} 0-1

[Event "IV Pullman Rapid 2022"]
[Site "Riga, Latvia"]
[Date "2022.02.19"]
[Round "7.4"]
[White "Antoms, Guntars"]
[Black "Krivenko, Dion"]
[Result "1-0"]
[TimeControl "600+5"]
[WhiteTitle "IM"]
[WhiteElo "2088"]
[BlackElo "1944"]

1. Nf3 {[%emt 00:03:37]} Nf6 {[%emt 00:00:02]} 2. g3 {[%clk 00:10:11]} {[%emt
00:00:03]} d5 {[%clk 00:10:04]} {[%emt 00:00:10]} 3. Bg2 {[%clk 00:10:14]}
{[%emt 00:00:02]} c6 {[%clk 00:10:06]} {[%emt 00:00:03]} 4. O-O {[%clk
00:10:09]} {[%emt 00:00:10]} Bg4 {[%clk 00:10:10]} {[%emt 00:00:02]} 5. d3
{[%clk 00:10:01]} {[%emt 00:00:13]} Nbd7 {[%clk 00:10:11]} {[%emt 00:00:03]} 6.
Nbd2 {[%clk 00:09:49]} {[%emt 00:00:17]} e5 {[%clk 00:09:43]} {[%emt 00:00:34]}
7. e4 {[%clk 00:09:45]} {[%emt 00:00:09]} Bd6 {[%clk 00:09:45]} {[%emt
00:00:03]} 8. h3 {[%clk 00:09:24]} {[%emt 00:00:26]} Bh5 {[%clk 00:09:40]}
{[%emt 00:00:10]} 9. g4 {[%clk 00:09:06]} {[%emt 00:00:23]} Bg6 {[%clk
00:09:44]} {[%emt 00:00:01]} 10. Nh4 {[%clk 00:09:03]} {[%emt 00:00:08]} Qc7
{[%emt 00:00:12]} 11. c4 {[%clk 00:07:30]} {[%emt 00:01:38]} dxe4 {[%clk
00:09:18]} {[%emt 00:00:24]} 12. Nxe4 {[%clk 00:07:20]} {[%emt 00:00:14]} Nxe4
{[%clk 00:09:12]} {[%emt 00:00:11]} 13. dxe4 {[%clk 00:07:23]} {[%emt
00:00:03]} Bc5 {[%clk 00:08:32]} {[%emt 00:00:44]} 14. Qe2 {[%clk 00:07:11]}
{[%emt 00:00:18]} Nf8 {[%clk 00:07:53]} {[%emt 00:00:44]} 15. Be3 {[%clk
00:07:06]} {[%emt 00:00:09]} Ne6 {[%clk 00:07:37]} {[%emt 00:00:22]} 16. Nf5
{[%clk 00:07:08]} {[%emt 00:00:03]} Bxf5 {[%clk 00:06:35]} {[%emt 00:01:07]} 17.
exf5 {[%clk 00:07:07]} {[%emt 00:00:06]} Nd4 {[%clk 00:06:24]} {[%emt
00:00:16]} 18. Qd3 {[%clk 00:06:28]} {[%emt 00:00:45]} O-O-O {[%clk 00:06:21]}
{[%emt 00:00:08]} 19. Qe4 {[%emt 00:00:09]} g6 {[%emt 00:00:30]} 20. f6 {[%emt
00:01:18]} Qd6 {[%clk 00:04:47]} {[%emt 00:01:14]} 21. a3 {[%clk 00:04:33]}
{[%emt 00:00:42]} Qxf6 {[%clk 00:03:35]} {[%emt 00:01:16]} 22. b4 {[%emt
00:00:08]} Ne2+ 23. Kh2 {[%clk 00:03:28]} {[%emt 00:01:08]} Nc3 {[%clk
00:02:08]} {[%emt 00:01:36]} 24. Qc2 {[%clk 00:03:13]} {[%emt 00:00:20]} Bd4
{[%clk 00:02:12]} {[%emt 00:00:01]} 25. Rae1 {[%clk 00:03:01]} {[%emt
00:00:17]} g5 {[%clk 00:01:29]} {[%emt 00:00:48]} 26. Bd2 {[%clk 00:02:26]}
{[%emt 00:00:39]} e4 {[%clk 00:01:11]} {[%emt 00:00:24]} 27. Bxc3 {[%emt
00:01:02]} Bxc3 {[%emt 00:00:02]} 28. Rxe4 {[%clk 00:01:27]} {[%emt 00:00:06]}
h5 {[%clk 00:00:55]} {[%emt 00:00:24]} 29. Qe2 {[%clk 00:01:11]} {[%emt
00:00:21]} hxg4 {[%clk 00:00:45]} {[%emt 00:00:15]} 30. Qxg4+ {[%clk 00:01:03]}
{[%emt 00:00:13]} Kb8 {[%clk 00:00:49]} {[%emt 00:00:01]} 31. b5 {[%clk
00:01:00]} {[%emt 00:00:09]} c5 {[%clk 00:00:37]} {[%emt 00:00:17]} 32. Qf3
{[%clk 00:00:22]} {[%emt 00:00:42]} Qxf3 {[%clk 00:00:33]} {[%emt 00:00:10]} 33.
Bxf3 {[%clk 00:00:26]} {[%emt 00:00:01]} f5 {[%clk 00:00:36]} {[%emt 00:00:02]}
34. Re7 {[%clk 00:00:28]} {[%emt 00:00:03]} g4 {[%clk 00:00:30]} {[%emt
00:00:11]} 35. Bg2 {[%clk 00:00:26]} {[%emt 00:00:07]} gxh3 {[%clk 00:00:27]}
{[%emt 00:00:07]} 36. Bd5 {[%clk 00:00:28]} {[%emt 00:00:03]} Rde8 {[%clk
00:00:15]} {[%emt 00:00:17]} 37. Rxb7+ {[%clk 00:00:29]} {[%emt 00:00:04]} Kc8
{[%clk 00:00:20]} 38. Rxa7 {[%clk 00:00:30]} {[%emt 00:00:05]} Be5+ {[%clk
00:00:18]} {[%emt 00:00:06]} 39. Kh1 {[%clk 00:00:33]} {[%emt 00:00:02]} Rh4
{[%clk 00:00:13]} {[%emt 00:00:11]} 40. Rf7 {[%emt 00:00:15]} Rf4 {[%emt
00:00:09]} 41. b6 {[%clk 00:00:23]} {[%emt 00:00:06]} Rh8 {[%clk 00:00:07]}
{[%emt 00:00:06]} 42. a4 {[%emt 00:00:03]} h2 {[%emt 00:00:02]} 43. a5 {[%clk
00:00:29]} {[%emt 00:00:01]} Kb8 {[%clk 00:00:10]} {[%emt 00:00:05]} 44. a6
{[%clk 00:00:32]} {[%emt 00:00:01]} Rg8 {[%clk 00:00:07]} {[%emt 00:00:07]} 45.
a7+ {[%clk 00:00:34]} {[%emt 00:00:04]} 1-0

[Event "IV Pullman Rapid 2022"]
[Site "Riga, Latvia"]
[Date "2022.02.19"]
[Round "8.1"]
[White "Shirov, Alexei"]
[Black "Antoms, Guntars"]
[Result "1-0"]
[TimeControl "600+5"]
[WhiteTitle "GM"]
[BlackTitle "IM"]
[WhiteElo "2614"]
[BlackElo "2088"]

1. e4 {[%clk 00:10:08]} {[%emt 00:00:02]} d5 {[%clk 00:10:09]} {[%emt
00:00:01]} 2. exd5 {[%clk 00:10:10]} {[%emt 00:00:03]} Qxd5 {[%clk 00:10:13]}
{[%emt 00:00:01]} 3. Nc3 {[%clk 00:10:13]} {[%emt 00:00:02]} Qd8 {[%clk
00:10:15]} {[%emt 00:00:03]} 4. d4 {[%clk 00:10:00]} {[%emt 00:00:18]} Nf6
{[%clk 00:10:18]} {[%emt 00:00:02]} 5. Bc4 {[%clk 00:09:55]} {[%emt 00:00:10]}
Bg4 {[%clk 00:09:29]} {[%emt 00:00:54]} 6. Nge2 {[%clk 00:09:31]} {[%emt
00:00:29]} e6 {[%clk 00:08:58]} {[%emt 00:00:37]} 7. f3 {[%clk 00:09:27]}
{[%emt 00:00:08]} Bf5 {[%clk 00:08:58]} {[%emt 00:00:06]} 8. g4 {[%clk
00:08:57]} {[%emt 00:00:35]} Bg6 {[%clk 00:09:01]} {[%emt 00:00:02]} 9. h4
{[%clk 00:09:00]} {[%emt 00:00:02]} h5 {[%clk 00:08:51]} {[%emt 00:00:15]} 10.
Nf4 {[%clk 00:06:37]} {[%emt 00:02:27]} hxg4 {[%clk 00:08:06]} {[%emt
00:00:51]} 11. Nxg6 {[%clk 00:06:39]} {[%emt 00:00:03]} fxg6 {[%clk 00:08:08]}
{[%emt 00:00:03]} 12. fxg4 {[%clk 00:06:33]} {[%emt 00:00:11]} Qd6 {[%clk
00:05:35]} {[%emt 00:02:38]} 13. Qd3 {[%clk 00:04:35]} {[%emt 00:02:03]} Nc6
{[%clk 00:04:39]} {[%emt 00:01:01]} 14. Nb5 {[%clk 00:04:35]} {[%emt 00:00:04]}
Qd7 {[%clk 00:03:45]} {[%emt 00:00:59]} 15. Qxg6+ {[%clk 00:04:37]} {[%emt
00:00:03]} Kd8 {[%clk 00:03:42]} {[%emt 00:00:08]} 16. Bg5 {[%clk 00:04:35]}
{[%emt 00:00:06]} Be7 {[%clk 00:03:11]} {[%emt 00:00:36]} 17. O-O-O {[%clk
00:04:38]} {[%emt 00:00:03]} a6 {[%clk 00:03:15]} {[%emt 00:00:02]} 18. Nc3
{[%clk 00:04:25]} {[%emt 00:00:16]} b5 {[%clk 00:02:30]} {[%emt 00:00:50]} 19.
Bxe6 {[%clk 00:03:59]} {[%emt 00:00:31]} Qxe6 {[%clk 00:02:19]} {[%emt
00:00:17]} 20. d5 {[%clk 00:04:02]} {[%emt 00:00:02]} Qxg4 {[%clk 00:02:04]}
{[%emt 00:00:20]} 21. dxc6+ {[%clk 00:04:01]} {[%emt 00:00:06]} Kc8 {[%clk
00:02:08]} 22. Qxg7 {[%clk 00:04:01]} {[%emt 00:00:06]} Rh7 {[%clk 00:01:48]}
{[%emt 00:00:26]} 23. Qxh7 {[%clk 00:03:21]} {[%emt 00:00:45]} Nxh7 {[%clk
00:01:46]} {[%emt 00:00:07]} 24. Bxe7 {[%clk 00:03:24]} {[%emt 00:00:02]} Qg8
{[%clk 00:01:32]} {[%emt 00:00:19]} 25. Rhg1 {[%clk 00:03:24]} {[%emt
00:00:05]} Qe8 {[%clk 00:01:20]} {[%emt 00:00:18]} 26. Rd8+ {[%clk 00:03:26]}
{[%emt 00:00:02]} Qxd8 {[%clk 00:01:20]} {[%emt 00:00:05]} 27. Bxd8 {[%emt
00:00:02]} 1-0

[Event "IV Pullman Rapid 2022"]
[Site "Riga, Latvia"]
[Date "2022.02.19"]
[Round "8.2"]
[White "Golubovskis, Maksims"]
[Black "Mustaps, Matiss"]
[Result "1-0"]
[TimeControl "600+5"]
[WhiteTitle "FM"]
[BlackTitle "FM"]
[WhiteElo "2185"]
[BlackElo "2393"]

1. e4 {[%clk 00:10:07]} {[%emt 00:00:02]} d6 {[%clk 00:10:10]} {[%emt
00:00:01]} 2. d4 {[%clk 00:10:12]} Nf6 {[%clk 00:10:14]} 3. Nc3 {[%clk
00:10:16]} g6 {[%clk 00:10:18]} 4. Be3 {[%clk 00:10:13]} {[%emt 00:00:10]} Bg7
{[%clk 00:10:20]} {[%emt 00:00:04]} 5. Qd2 {[%clk 00:10:16]} {[%emt 00:00:03]}
Nc6 {[%clk 00:09:51]} {[%emt 00:00:34]} 6. f3 {[%clk 00:09:59]} {[%emt
00:00:21]} O-O {[%clk 00:09:49]} {[%emt 00:00:06]} 7. O-O-O {[%clk 00:09:44]}
{[%emt 00:00:20]} e5 {[%clk 00:09:32]} {[%emt 00:00:22]} 8. Nge2 {[%clk
00:09:48]} exd4 {[%clk 00:09:17]} {[%emt 00:00:21]} 9. Nxd4 {[%clk 00:09:13]}
{[%emt 00:00:40]} Nxd4 {[%clk 00:09:04]} {[%emt 00:00:18]} 10. Bxd4 {[%clk
00:09:15]} {[%emt 00:00:03]} Be6 {[%clk 00:09:09]} 11. g4 {[%clk 00:08:50]}
{[%emt 00:00:31]} c5 {[%clk 00:08:48]} {[%emt 00:00:25]} 12. Be3 {[%clk
00:08:33]} {[%emt 00:00:21]} Qa5 {[%clk 00:08:53]} 13. Kb1 {[%clk 00:07:55]}
{[%emt 00:00:44]} Rfd8 {[%clk 00:07:48]} {[%emt 00:01:09]} 14. g5 {[%clk
00:05:33]} {[%emt 00:02:26]} Nd7 {[%clk 00:06:21]} {[%emt 00:01:33]} 15. Nd5
{[%clk 00:05:14]} {[%emt 00:00:24]} Qxd2 {[%clk 00:05:43]} {[%emt 00:00:43]} 16.
Rxd2 {[%clk 00:05:19]} {[%emt 00:00:01]} Bxd5 {[%clk 00:05:47]} 17. Rxd5 {[%clk
00:05:01]} {[%emt 00:00:22]} Nb6 {[%clk 00:05:51]} 18. Rd1 {[%clk 00:03:09]}
{[%emt 00:01:56]} d5 {[%clk 00:05:45]} {[%emt 00:00:12]} 19. Bxc5 {[%clk
00:01:47]} {[%emt 00:01:27]} dxe4 {[%clk 00:05:39]} {[%emt 00:00:11]} 20. Be2
{[%clk 00:01:44]} {[%emt 00:00:08]} e3 {[%clk 00:03:52]} {[%emt 00:01:52]} 21.
Bxe3 {[%clk 00:01:03]} {[%emt 00:00:46]} Re8 {[%clk 00:03:07]} {[%emt
00:00:50]} 22. Bxb6 {[%clk 00:01:07]} {[%emt 00:00:01]} Rxe2 {[%clk 00:03:11]}
{[%emt 00:00:02]} 23. Bd4 {[%clk 00:00:40]} {[%emt 00:00:31]} Rc8 {[%clk
00:03:11]} {[%emt 00:00:05]} 24. Bxg7 {[%clk 00:00:33]} {[%emt 00:00:12]} Kxg7
{[%clk 00:03:14]} {[%emt 00:00:02]} 25. Rd7 {[%clk 00:00:20]} {[%emt 00:00:18]}
b5 {[%clk 00:01:21]} {[%emt 00:01:58]} 26. c3 {[%clk 00:00:25]} b4 {[%clk
00:01:00]} {[%emt 00:00:27]} 27. Rc1 {[%clk 00:00:29]} {[%emt 00:00:01]} bxc3
{[%clk 00:00:48]} {[%emt 00:00:17]} 28. Rxc3 {[%clk 00:00:33]} Rb8 {[%clk
00:00:37]} {[%emt 00:00:17]} 29. b3 {[%clk 00:00:10]} {[%emt 00:00:29]} a5
{[%clk 00:00:31]} {[%emt 00:00:11]} 30. Rcc7 {[%clk 00:00:10]} {[%emt
00:00:04]} Rf8 {[%clk 00:00:36]} 31. Rc2 {[%clk 00:00:07]} {[%emt 00:00:08]}
Re5 {[%clk 00:00:31]} {[%emt 00:00:10]} 32. f4 {[%clk 00:00:11]} Re4 {[%clk
00:00:31]} {[%emt 00:00:05]} 33. Rc4 {[%clk 00:00:16]} Re2 {[%clk 00:00:34]}
{[%emt 00:00:02]} 34. Rc2 {[%clk 00:00:20]} Re4 {[%clk 00:00:38]} 35. Rd5
{[%clk 00:00:13]} {[%emt 00:00:24]} a4 {[%clk 00:00:51]} {[%emt 00:00:01]} 36.
Rc4 {[%clk 00:00:08]} {[%emt 00:00:10]} Re1+ {[%clk 00:00:50]} {[%emt
00:00:05]} 37. Rc1 {[%clk 00:00:06]} {[%emt 00:00:07]} Re4 {[%clk 00:00:54]}
{[%emt 00:00:01]} 38. Rc4 {[%clk 00:00:09]} {[%emt 00:00:02]} Re1+ 39. Kb2
{[%emt 00:00:01]} Re2+ {[%clk 00:00:20]} {[%emt 00:00:43]} 40. Rc2 {[%clk
00:00:18]} {[%emt 00:00:01]} a3+ {[%clk 00:00:07]} {[%emt 00:00:18]} 41. Kc1
{[%clk 00:00:18]} {[%emt 00:00:05]} Re1+ {[%clk 00:00:11]} {[%emt 00:00:01]} 42.
Rd1 {[%clk 00:00:20]} {[%emt 00:00:03]} Re4 {[%clk 00:00:15]} 43. Rc4 {[%clk
00:00:23]} {[%emt 00:00:02]} Rxc4+ {[%clk 00:00:06]} {[%emt 00:00:14]} 44. bxc4
{[%clk 00:00:28]} Rc8 {[%clk 00:00:10]} 45. Rd4 {[%clk 00:00:32]} {[%emt
00:00:01]} Kf8 {[%clk 00:00:07]} {[%emt 00:00:09]} 46. Kc2 {[%clk 00:00:17]}
{[%emt 00:00:20]} Rb8 {[%clk 00:00:12]} 47. Kc3 {[%clk 00:00:21]} Rb2 {[%clk
00:00:16]} 48. Rd2 {[%clk 00:00:25]} Rb1 {[%clk 00:00:19]} {[%emt 00:00:02]} 49.
Re2 {[%clk 00:00:27]} {[%emt 00:00:03]} f6 {[%clk 00:00:15]} {[%emt 00:00:09]}
50. c5 {[%clk 00:00:30]} {[%emt 00:00:01]} fxg5 {[%clk 00:00:17]} {[%emt
00:00:03]} 51. fxg5 {[%clk 00:00:34]} Rc1+ {[%clk 00:00:16]} {[%emt 00:00:07]}
52. Rc2 {[%clk 00:00:29]} {[%emt 00:00:10]} Rb1 {[%clk 00:00:20]} 53. Re2
{[%clk 00:00:32]} {[%emt 00:00:02]} Rc1+ {[%clk 00:00:25]} {[%emt 00:00:01]} 54.
Kb4 {[%clk 00:00:36]} Kf7 {[%clk 00:00:26]} {[%emt 00:00:03]} 55. Kb5 {[%clk
00:00:39]} {[%emt 00:00:02]} Rb1+ {[%clk 00:00:29]} {[%emt 00:00:03]} 56. Kc4
{[%clk 00:00:17]} {[%emt 00:00:25]} Rb2 {[%clk 00:00:33]} {[%emt 00:00:02]} 57.
Kd3 {[%clk 00:00:19]} {[%emt 00:00:03]} Rb1 {[%clk 00:00:07]} {[%emt 00:00:32]}
58. c6 {[%clk 00:00:20]} {[%emt 00:00:04]} Rb8 {[%clk 00:00:06]} {[%emt
00:00:06]} 59. Kd4 {[%clk 00:00:10]} {[%emt 00:00:14]} Rb2 {[%clk 00:00:10]}
{[%emt 00:00:01]} 60. c7 {[%clk 00:00:15]} Rxe2 {[%clk 00:00:06]} {[%emt
00:00:09]} 61. c8=Q {[%clk 00:00:18]} Re7 {[%clk 00:00:06]} {[%emt 00:00:06]}
62. Qc4+ {[%clk 00:00:21]} {[%emt 00:00:02]} Ke8 {[%clk 00:00:07]} {[%emt
00:00:05]} 63. Qc5 {[%clk 00:00:22]} {[%emt 00:00:03]} Rd7+ {[%clk 00:00:07]}
{[%emt 00:00:06]} 64. Kc3 {[%clk 00:00:26]} Kf7 {[%clk 00:00:08]} {[%emt
00:00:05]} 65. Qxa3 {[%emt 00:00:03]} Ke6 66. Qa6+ {[%clk 00:00:24]} {[%emt
00:00:08]} 1-0